bitfinex-derivatives/quotes_BNBF0:USTF0_20230831
["timestamp","ask_amount","ask_price","bid_price","bid_amount"]
[1693480100111,0.07308475,224.2,223.91,0.19493164]
[1693480100311,0.07308475,224.2,223.92,0.19493164]
[1693480100511,0.07308475,224.2,223.93,0.19493164]
[1693480100712,0.07308475,224.2,223.94,0.19493164]
[1693480101011,0.07308475,224.2,223.89,0.07233269]
[1693480101012,0.07308475,224.2,223.95,0.19493164]
[1693480101209,0.07308475,224.2,223.9,0.19493164]
[1693480101406,0.07308475,224.2,223.91,0.19491032]
[1693480101611,0.07308475,224.2,223.92,0.19491032]
[1693480101812,0.07308475,224.2,223.93,0.19491032]
[1693480102008,0.07308475,224.2,223.94,0.19491032]
[1693480102208,0.07308475,224.2,223.95,0.19491032]
[1693480102406,0.07308475,224.2,223.88,0.07233269]
[1693480102608,0.07308475,224.2,223.89,0.19490935]
[1693480102812,0.07308475,224.21,223.89,0.19490935]
[1693480103512,0.07308475,224.2,223.89,0.19490935]
[1693480103914,0.07308475,224.2,223.9,0.19490935]
[1693480104109,0.07308475,224.2,223.88,0.19490935]
[1693480104312,0.07308475,224.2,223.89,0.19490935]
[1693480104515,0.07308475,224.2,223.88,0.19490935]
[1693480104819,0.07308475,224.2,223.89,0.19490935]
[1693480105013,0.07308475,224.2,223.9,0.19490935]
[1693480105315,0.07308475,224.2,223.91,0.19490935]
[1693480105516,0.07308475,224.2,223.92,0.19490935]
[1693480105710,0.07308475,224.2,223.93,0.19490935]
[1693480105914,0.07308475,224.2,223.94,0.19490935]
[1693480106112,0.07308475,224.2,223.87,0.07233269]
[1693480106310,0.07308475,224.2,223.88,0.19497541]
[1693480112622,0.07308475,224.16,223.88,0.19497541]
[1693480112821,0.07308475,224.15,223.89,0.19497541]
[1693480113019,0.07308475,224.14,223.83,0.19497541]
[1693480113214,0.07308475,224.15,223.84,0.1952684]
[1693480113417,0.14616951,224.17,223.85,0.1952684]
[1693480113418,0.07308475,224.14,223.85,0.1952684]
[1693480113619,0.07308475,224.15,223.86,0.1952684]
[1693480113817,0.07308475,224.14,223.87,0.1952684]
[1693480114015,0.07308475,224.14,223.88,0.1952684]
[1693480114420,0.07308475,224.15,223.89,0.1952684]
[1693480114623,0.07308475,224.15,223.82,0.07233269]
[1693480114821,0.07308475,224.15,223.83,0.19524876]
[1693480123833,0.97446342,224.23,223.83,0.19524876]
[1693480123834,0.07308475,224.16,223.83,0.19524876]
[1693480133441,0.07308475,224.16,223.83,0.26758145]
[1693480133637,0.07308475,224.16,223.84,0.19524876]
[1693480135343,0.07308475,224.21,223.88,0.07233269]
[1693480135544,0.07308475,224.21,223.89,0.19524876]
[1693480143545,0.07308475,224.22,223.89,0.19524876]
[1693480143749,0.07308475,224.22,223.9,0.19524876]
[1693480143946,0.07308475,224.22,223.91,0.19524876]
[1693480144150,0.07308475,224.22,223.92,0.19524876]
[1693480144346,0.07308475,224.22,223.93,0.19524876]
[1693480144547,0.07308475,224.22,223.94,0.19524876]
[1693480144751,0.07308475,224.22,223.95,0.19524876]
[1693480144952,0.07308475,224.22,223.87,0.07233269]
[1693480145152,0.07308475,224.22,223.88,0.194761]
[1693480151052,0.07308475,224.22,223.89,0.194761]
[1693480151252,0.07308475,224.22,223.9,0.194761]
[1693480151559,0.07308475,224.22,223.91,0.194761]
[1693480151857,0.07308475,224.22,223.92,0.194761]
[1693480152057,0.07308475,224.22,223.93,0.194761]
[1693480152257,0.07308475,224.22,223.87,0.194761]
[1693480152557,0.07308475,224.22,223.88,0.194761]
[1693480152758,0.07308475,224.22,223.89,0.194761]
[1693480152954,0.07308475,224.22,223.9,0.194761]
[1693480153156,0.07308475,224.22,223.91,0.194761]
[1693480153356,0.07308475,224.22,223.92,0.194761]
[1693480153558,0.07308475,224.22,223.93,0.194761]
[1693480153754,0.07308475,224.22,223.94,0.194761]
[1693480153954,0.07308475,224.22,223.95,0.194761]
[1693480154160,0.07308475,224.22,223.86,0.07233269]
[1693480154357,0.07308475,224.22,223.87,0.19478219]
[1693480155363,0.07308475,224.22,223.87,0.26711488]
[1693480155560,0.07308475,224.22,223.88,0.19478219]
[1693480157361,0.07308475,224.21,223.88,0.19478219]
[1693480160756,0.07308475,224.21,223.88,0.26711488]
[1693480160960,0.07308475,224.21,223.89,0.19478219]
[1693480161359,0.07308475,224.2,223.89,0.19478219]
[1693480162162,0.07308475,224.21,223.89,0.19478219]
[1693480162356,0.07308475,224.2,223.89,0.19478219]
[1693480163255,0.07308475,224.2,223.89,0.26711488]
[1693480163458,0.07308475,224.2,223.9,0.19478219]
[1693480165268,0.07308475,224.19,223.9,0.26711488]
[1693480165566,0.07308475,224.19,223.91,0.19478219]
[1693480166670,0.07308475,224.18,223.91,0.19478219]
[1693480167466,0.07308475,224.18,223.91,0.26711488]
[1693480167667,0.07308475,224.18,223.92,0.19478219]
[1693480168471,0.07308475,224.17,223.92,0.26711488]
[1693480168672,0.07308475,224.17,223.93,0.19478219]
[1693480169270,0.07308475,224.15,223.94,0.07233269]
[1693480169572,0.07308475,224.15,223.95,0.19478219]
[1693480178579,0.07308475,224.14,223.95,0.19478219]
[1693480178784,0.07308475,224.14,223.93,0.07233269]
[1693480178985,0.07308475,224.15,223.94,0.26714221]
[1693480179182,0.07308475,224.15,223.95,0.19480952]
[1693480182890,0.07308475,224.16,223.95,0.26714221]
[1693480183186,0.07308475,224.16,223.96,0.19480952]
[1693480183788,0.07308475,224.17,223.96,0.19480952]
[1693480185893,0.07308475,224.18,223.96,0.19480952]
[1693480195201,0.07308475,224.18,223.97,0.19480952]
[1693480195402,0.07308475,224.18,223.95,0.19480952]
[1693480195601,0.07308475,224.18,223.96,0.19471341]
[1693480195799,0.07308475,224.18,223.95,0.19471341]
[1693480195998,0.07308475,224.18,223.96,0.19471341]
[1693480196197,0.07308475,224.18,223.97,0.19471341]
[1693480196399,0.07308475,224.18,223.94,0.07233269]
[1693480196598,0.07308475,224.18,223.95,0.19471031]
[1693480196800,0.07308475,224.18,223.95,0.267043]
[1693480197000,0.07308475,224.18,223.96,0.19471031]
[1693480197804,0.07308475,224.19,223.97,0.19471031]
[1693480198005,0.07308475,224.19,223.95,0.07233269]
[1693480198205,0.07308475,224.19,223.96,0.194712]
[1693480199508,0.07308475,224.19,223.97,0.194712]
[1693480199807,0.07308475,224.19,223.94,0.07233269]
[1693480200005,0.07308475,224.19,223.95,0.19471411]
[1693480202806,0.07308475,224.19,223.95,0.2670468]
[1693480203005,0.07308475,224.19,223.96,0.19471411]
[1693480205710,0.07308475,224.18,223.96,0.19471411]
[1693480205906,0.07308475,224.19,223.96,0.19471411]
[1693480206111,0.07308475,224.18,223.96,0.19471411]
[1693480206310,0.07308475,224.18,223.97,0.19471411]
[1693480206508,0.07308475,224.18,223.94,0.07233269]
[1693480206712,0.07308475,224.18,223.95,0.19474315]
[1693480208314,0.07308475,224.17,223.95,0.19474315]
[1693480208515,0.07308475,224.18,223.95,0.19474315]
[1693480210210,0.07308475,224.17,223.95,0.19474315]
[1693480216618,0.07308475,224.17,223.95,0.26707584]
[1693480216819,0.07308475,224.17,223.96,0.19474315]
[1693480217620,0.07308475,224.16,223.96,0.19474315]
[1693480218317,0.07308475,224.17,223.96,0.19474315]
[1693480240331,0.07308475,224.16,223.96,0.19474315]
[1693480240830,0.07308475,224.17,223.96,0.26707584]
[1693480241031,0.07308475,224.17,223.97,0.19474315]
[1693480241434,0.07308475,224.16,223.97,0.19474315]
[1693480242233,0.07308475,224.17,223.97,0.19474315]
[1693480242630,0.07308475,224.16,223.97,0.19474315]
[1693480243532,0.07308475,224.17,223.97,0.19474315]
[1693480245534,0.07308475,224.16,223.97,0.19474315]
[1693480245934,0.07308475,224.17,223.97,0.19474315]
[1693480249141,0.07308475,224.18,223.97,0.26707584]
[1693480249342,0.07308475,224.18,223.98,0.19474315]
[1693480249543,0.07308475,224.18,223.96,0.07233269]
[1693480249544,0.07308475,224.18,223.97,0.19474315]
[1693480249739,0.07308475,224.25,224.03,0.07233269]
[1693480249941,0.07308475,224.25,224.04,0.19436978]
[1693480250343,0.07308475,224.28,224.04,0.19436978]
[1693480250642,0.07308475,224.28,223.99,0.07233269]
[1693480250840,0.07308475,224.28,224.0,0.19436743]
[1693480251441,0.07308475,224.29,224.0,0.19436743]
[1693480251642,0.07308475,224.29,224.01,0.19436743]
[1693480251838,0.07308475,224.29,224.02,0.19436743]
[1693480252043,0.07308475,224.29,224.03,0.19436743]
[1693480252344,0.07308475,224.3,224.04,0.19436743]
[1693480252541,0.07308475,224.3,223.97,0.19436743]
[1693480252745,0.07308475,224.3,223.98,0.19437154]
[1693480252942,0.07308475,224.3,223.97,0.19437154]
[1693480253147,0.07308475,224.3,223.98,0.19437154]
[1693480253342,0.07308475,224.3,223.99,0.19437154]
[1693480253540,0.07308475,224.3,224.0,0.19437154]
[1693480253746,0.07308475,224.3,224.01,0.19437154]
[1693480253946,0.07308475,224.3,224.02,0.19437154]
[1693480254142,0.07308475,224.3,224.03,0.19437154]
[1693480254346,0.07308475,224.31,223.95,0.07233269]
[1693480254545,0.07308475,224.31,223.96,0.19436595]
[1693480254742,0.07308475,224.31,223.97,0.19436595]
[1693480254941,0.07308475,224.31,223.98,0.19436595]
[1693480255142,0.07308475,224.31,223.99,0.19436595]
[1693480255342,0.07308475,224.31,224.0,0.19436595]
[1693480255547,0.07308475,224.31,224.01,0.19436595]
[1693480255845,0.07308475,224.31,224.02,0.19436595]
[1693480256050,0.07308475,224.31,224.03,0.19436595]
[1693480256250,0.07308475,224.31,223.93,0.07233269]
[1693480256551,0.07308475,224.31,223.94,0.19438284]
[1693480258646,0.07308475,224.31,223.95,0.19438284]
[1693480258849,0.07308475,224.31,223.96,0.19438284]
[1693480259052,0.07308475,224.31,223.92,0.07233269]
[1693480259053,0.07308475,224.31,223.97,0.19438284]
[1693480259353,0.07308475,224.31,223.98,0.19438284]
[1693480259553,0.07308475,224.31,223.99,0.19438284]
[1693480259853,0.07308475,224.31,224.0,0.19438284]
[1693480260054,0.07308475,224.31,224.01,0.19438284]
[1693480260249,0.07308475,224.31,223.93,0.19438284]
[1693480260855,0.07308475,224.26,223.93,0.19438284]
[1693480261055,0.07308475,224.26,223.94,0.19438284]
[1693480261350,0.07308475,224.26,223.95,0.19438284]
[1693480261554,0.07308475,224.26,223.96,0.19438284]
[1693480261749,0.07308475,224.26,223.97,0.19438284]
[1693480261956,0.07308475,224.25,223.87,0.07233269]
[1693480262149,0.07308475,224.25,223.88,0.19480019]
[1693480265155,0.07308475,224.25,223.88,0.26713288]
[1693480265350,0.07308475,224.25,223.89,0.19480019]
[1693480268760,0.07308475,224.24,223.89,0.19480019]
[1693480282967,2.43615856,224.38,223.89,0.19480019]
[1693480283168,0.07290615,224.24,223.9,0.19480019]
[1693480283363,0.07290615,224.24,223.91,0.19480019]
[1693480283565,0.07290615,224.24,223.92,0.19480019]
[1693480283766,0.07290615,224.24,223.93,0.19480019]
[1693480283969,0.07290615,224.24,223.94,0.19480019]
[1693480284171,0.07290615,224.24,223.95,0.19480019]
[1693480284367,0.07290615,224.24,223.96,0.19480019]
[1693480284669,0.07290615,224.24,223.97,0.19480019]
[1693480284870,0.07290615,224.24,223.88,0.07250761]
[1693480285071,0.07290615,224.24,223.89,0.19481644]
[1693480285270,0.07290615,224.24,223.89,0.26732405]
[1693480285471,0.07290615,224.24,223.9,0.19481644]
[1693480286468,0.07290615,224.23,223.9,0.19481644]
[1693480287273,0.07290615,224.23,223.9,0.26732405]
[1693480287566,0.07290615,224.23,223.91,0.19481644]
[1693480288369,0.07290615,224.22,223.91,0.19481644]
[1693480289371,0.07290615,224.22,223.91,0.26732405]
[1693480289572,0.07290615,224.22,223.92,0.19481644]
[1693480290467,0.07290615,224.21,223.92,0.19481644]
[1693480291274,0.07290615,224.21,223.92,0.26732405]
[1693480291475,0.07290615,224.21,223.93,0.19481644]
[1693480292575,0.07290615,224.2,223.93,0.26732405]
[1693480292775,0.07290615,224.2,223.94,0.19481644]
[1693480293371,0.07290615,224.19,223.94,0.26732405]
[1693480293574,0.07290615,224.19,223.95,0.19481644]
[1693480294276,0.07290615,224.17,223.96,0.07250761]
[1693480294477,0.07290615,224.17,223.97,0.19481644]
[1693480312591,0.07290615,224.17,223.97,0.26732405]
[1693480312792,0.07290615,224.17,223.97,0.07250761]
[1693480315094,0.07290615,224.17,223.98,0.19471526]
[1693480316798,0.07290615,224.17,223.97,0.07250761]
[1693480317596,0.07290615,224.17,223.98,0.19471185]
[1693480318602,0.07290615,224.17,223.97,0.07250761]
[1693480321397,0.07290615,224.18,223.98,0.19470202]
[1693480321601,0.07290615,224.19,223.98,0.26720963]
[1693480321901,0.07290615,224.18,223.99,0.19470202]
[1693480322301,0.07290615,224.19,223.99,0.19470202]
[1693480323002,0.07290615,224.19,223.97,0.07250761]
[1693480323204,0.07290615,224.19,223.98,0.19467261]
[1693480325608,0.07290615,224.2,223.98,0.26718022]
[1693480325807,0.07290615,224.2,223.99,0.19467261]
[1693480327004,0.07290615,224.2,223.97,0.07250761]
[1693480327209,0.07290615,224.2,223.98,0.26714758]
[1693480327410,0.07290615,224.2,223.99,0.19463997]
[1693480328007,0.07290615,224.2,223.97,0.07250761]
[1693480328302,0.07290615,224.2,223.98,0.19464618]
[1693480328909,0.07290615,224.21,223.98,0.19464618]
[1693480329913,0.07290615,224.2,223.98,0.19464618]
[1693480331014,0.07290615,224.2,223.99,0.19464618]
[1693480331214,0.07290615,224.2,223.97,0.07250761]
[1693480331415,0.07290615,224.21,223.98,0.19464785]
[1693480332816,0.07290615,224.21,223.99,0.19464785]
[1693480333011,0.07290615,224.21,223.96,0.07250761]
[1693480333211,0.07290615,224.21,223.97,0.19465438]
[1693480345224,0.07290615,224.21,223.97,0.26716199]
[1693480345417,0.07290615,224.21,223.98,0.19465438]
[1693480351829,0.07290615,224.2,223.98,0.19465438]
[1693480352025,0.07290615,224.21,223.98,0.19465438]
[1693480352230,0.07290615,224.2,223.98,0.26716199]
[1693480352427,0.07290615,224.2,223.99,0.19465438]
[1693480357938,0.07290615,224.2,223.99,0.26716199]
[1693480358138,0.07290615,224.2,224.0,0.19465438]
[1693480358537,0.07290615,224.2,223.98,0.07250761]
[1693480358738,0.07290615,224.2,223.99,0.19461958]
[1693480358938,0.07290615,224.2,223.99,0.26712719]
[1693480359139,0.07290615,224.2,224.0,0.19461958]
[1693480360540,0.07290615,224.2,223.98,0.07250761]
[1693480360740,0.07290615,224.2,223.99,0.19462758]
[1693480364143,0.07290615,224.2,223.99,0.26713519]
[1693480364347,0.07290615,224.21,224.0,0.19462758]
[1693480365444,0.07290615,224.27,224.05,0.07250761]
[1693480365642,0.07290615,224.27,224.06,0.19462758]
[1693480365837,0.07290615,224.29,224.06,0.19462758]
[1693480366142,0.07290615,224.29,224.02,0.07250761]
[1693480366341,0.07290615,224.29,224.03,0.19429072]
[1693480366741,0.07290615,224.3,224.03,0.19429072]
[1693480366944,0.07290615,224.3,224.04,0.19429072]
[1693480367140,0.07290615,224.3,224.02,0.19429072]
[1693480367342,0.07290615,224.3,224.03,0.19429072]
[1693480367545,0.07290615,224.3,224.04,0.19429072]
[1693480367739,0.07290615,224.31,224.02,0.19429072]
[1693480367940,0.07290615,224.31,224.03,0.19429072]
[1693480368140,0.07290615,224.31,224.01,0.19429072]
[1693480368339,0.07290615,224.31,224.02,0.19429072]
[1693480368542,0.07290615,224.31,224.03,0.19429072]
[1693480368738,0.07290615,224.32,224.04,0.19429072]
[1693480368939,0.07290615,224.32,224.05,0.19429072]
[1693480369143,0.07290615,224.32,224.06,0.19429072]
[1693480369343,0.07290615,224.32,224.0,0.19429072]
[1693480369545,0.07290615,224.32,224.01,0.19426801]
[1693480369753,0.07290615,224.32,224.02,0.19426801]
[1693480369946,0.07290615,224.32,224.03,0.19426801]
[1693480370142,0.07290615,224.32,224.04,0.19426801]
[1693480370346,0.07290615,224.32,224.05,0.19426801]
[1693480370539,0.07290615,224.32,224.0,0.19426801]
[1693480370745,0.07290615,224.33,224.01,0.19426801]
[1693480370947,0.07290615,224.33,224.02,0.19426801]
[1693480371147,0.07290615,224.33,223.99,0.19426801]
[1693480371349,0.07290615,224.33,224.0,0.19426801]
[1693480371547,0.07290615,224.33,223.99,0.19426801]
[1693480371749,0.07290615,224.33,224.0,0.19426801]
[1693480371947,0.07290615,224.33,223.99,0.19426801]
[1693480372148,0.07290615,224.33,224.0,0.19426801]
[1693480372348,0.07290615,224.33,223.99,0.19426801]
[1693480372547,0.07290615,224.33,224.0,0.19426801]
[1693480372748,0.07290615,224.33,223.91,0.14501523]
[1693480372749,0.07290615,224.33,223.99,0.19426801]
[1693480372948,0.07290615,224.33,224.0,0.19426801]
[1693480373144,0.07290615,224.33,223.98,0.19426801]
[1693480373350,0.07290615,224.33,223.99,0.19426801]
[1693480373550,0.07290615,224.33,223.98,0.19426801]
[1693480373748,0.07290615,224.33,223.97,0.07250761]
[1693480373749,0.07290615,224.33,223.99,0.19426801]
[1693480374046,0.07290615,224.33,224.0,0.19426801]
[1693480374251,0.07290615,224.33,224.01,0.19426801]
[1693480374448,0.07290615,224.33,224.02,0.19426801]
[1693480374754,0.07290615,224.33,224.03,0.19426801]
[1693480374952,0.07290615,224.34,224.04,0.19426801]
[1693480375147,0.07290615,224.34,224.05,0.19426801]
[1693480375352,0.07290615,224.34,224.06,0.19426801]
[1693480375651,0.07290615,224.34,223.96,0.07250761]
[1693480375844,0.07290615,224.34,223.97,0.19427255]
[1693480379056,0.07290615,224.36,223.98,0.07250761]
[1693480379351,0.07290615,224.36,223.99,0.19427255]
[1693480379951,0.07290615,224.36,224.0,0.19427255]
[1693480380154,0.07290615,224.36,224.01,0.19427255]
[1693480380350,0.07290615,224.36,223.98,0.19427255]
[1693480380555,0.07290615,224.36,223.99,0.19427255]
[1693480380856,0.07290615,224.36,224.0,0.19427255]
[1693480381157,0.07290615,224.36,224.01,0.19427255]
[1693480381455,0.07290615,224.36,224.02,0.19427255]
[1693480381657,0.07290615,224.36,224.03,0.19427255]
[1693480381858,0.07290615,224.37,223.99,0.19427255]
[1693480382056,0.07290615,224.37,224.0,0.19427255]
[1693480382356,0.07290615,224.37,224.01,0.19427255]
[1693480382552,0.07290615,224.37,223.99,0.19427255]
[1693480382760,0.07290615,224.37,224.0,0.19427255]
[1693480382957,0.07290615,224.37,224.01,0.19427255]
[1693480383156,0.07290615,224.37,223.99,0.19427255]
[1693480383353,0.07290615,224.37,224.0,0.19427255]
[1693480383554,0.07290615,224.37,224.01,0.19427255]
[1693480383756,0.07290615,224.37,224.02,0.19427255]
[1693480383959,0.07290615,224.37,224.03,0.19427255]
[1693480384256,0.07290615,224.37,224.04,0.19427255]
[1693480384457,0.07290615,224.37,224.05,0.19427255]
[1693480384660,0.07290615,224.37,223.99,0.19427255]
[1693480384856,0.07290615,224.37,224.0,0.19427255]
[1693480385151,0.07290615,224.37,224.01,0.19427255]
[1693480385358,0.07290615,224.37,223.98,0.19427255]
[1693480385557,0.07290615,224.37,223.99,0.19427255]
[1693480386157,0.07290615,224.37,224.0,0.19427255]
[1693480386355,0.07290615,224.37,223.98,0.19427255]
[1693480386557,0.07290615,224.37,223.99,0.19427255]
[1693480386760,0.07290615,224.37,223.98,0.26678016]
[1693480386959,0.07290615,224.37,224.0,0.19427255]
[1693480387457,0.07290615,224.37,223.98,0.19427255]
[1693480387657,0.07290615,224.37,223.99,0.19427255]
[1693480388457,0.07290615,224.41,224.02,0.07250761]
[1693480388661,0.07290615,224.41,224.03,0.19427255]
[1693480389052,0.07290615,224.41,224.04,0.19427255]
[1693480389250,0.07290615,224.41,224.05,0.19427255]
[1693480389558,0.07290615,224.41,224.06,0.19427255]
[1693480389754,0.07290615,224.41,224.07,0.19427255]
[1693480389951,0.07290615,224.41,224.08,0.19427255]
[1693480390150,0.07290615,224.41,224.09,0.19427255]
[1693480390359,0.07290615,224.41,224.1,0.19427255]
[1693480390657,0.07290615,224.41,224.11,0.19427255]
[1693480390854,0.07290615,224.41,224.02,0.19427255]
[1693480391050,0.07290615,224.41,224.03,0.19427255]
[1693480391250,0.07290615,224.41,224.02,0.19427255]
[1693480391454,0.07290615,224.41,224.03,0.19427255]
[1693480391654,0.07290615,224.41,224.01,0.19427255]
[1693480391855,0.07290615,224.41,224.02,0.19427255]
[1693480392053,0.07290615,224.41,224.01,0.19427255]
[1693480392255,0.07290615,224.41,224.02,0.19427255]
[1693480392450,0.07290615,224.41,224.03,0.19427255]
[1693480392654,0.07290615,224.41,224.04,0.19427255]
[1693480392854,0.07290615,224.41,224.05,0.19427255]
[1693480393058,0.07290615,224.41,224.06,0.19427255]
[1693480393252,0.07290615,224.41,224.01,0.19427255]
[1693480393458,0.07290615,224.41,224.02,0.19427255]
[1693480393649,0.07290615,224.41,224.03,0.19427255]
[1693480393851,0.07290615,224.42,224.01,0.19427255]
[1693480394055,0.07290615,224.42,224.02,0.19427255]
[1693480394253,0.07290615,224.42,224.03,0.19427255]
[1693480394456,0.07290615,224.42,224.04,0.19427255]
[1693480394657,0.07290615,224.42,224.05,0.19427255]
[1693480394853,0.07290615,224.42,224.06,0.19427255]
[1693480395059,0.07290615,224.42,224.07,0.19427255]
[1693480395257,0.07290615,224.42,224.08,0.19427255]
[1693480395456,0.07290615,224.41,224.09,0.19427255]
[1693480395659,0.07290615,224.41,224.1,0.19427255]
[1693480395859,0.07290615,224.42,224.11,0.19427255]
[1693480396059,0.07290615,224.42,224.01,0.19427255]
[1693480396261,0.07290615,224.41,224.02,0.19375788]
[1693480396559,0.07290615,224.42,224.03,0.19375788]
[1693480396761,0.07290615,224.41,224.04,0.19375788]
[1693480397060,0.07290615,224.41,224.05,0.19375788]
[1693480397260,0.07290615,224.41,224.06,0.19375788]
[1693480397461,0.07290615,224.41,224.07,0.19375788]
[1693480397660,0.07290615,224.41,224.01,0.19375788]
[1693480397856,0.07290615,224.41,224.02,0.19375788]
[1693480398861,0.07290615,224.4,224.02,0.26626549]
[1693480399061,0.07290615,224.4,224.03,0.19375788]
[1693480399764,0.07290615,224.39,224.03,0.19375788]
[1693480402063,0.07290615,224.4,224.03,0.19375788]
[1693480402665,0.07290615,224.39,224.03,0.19375788]
[1693480403865,0.07290615,224.4,224.03,0.26626549]
[1693480404065,0.07290615,224.4,224.04,0.19375788]
[1693480408867,0.07290615,224.39,224.04,0.19375788]
[1693480409070,0.07290615,224.4,224.04,0.19375788]
[1693480409470,0.07290615,224.39,224.04,0.19375788]
[1693480409670,0.07290615,224.39,224.04,0.26626549]
[1693480409868,0.07290615,224.39,224.05,0.19375788]
[1693480411764,0.07290615,224.38,224.05,0.19375788]
[1693480412871,0.07290615,224.38,224.05,0.26626549]
[1693480413067,0.07290615,224.38,224.06,0.19375788]
[1693480413264,0.07290615,224.37,224.06,0.19375788]
[1693480413671,0.07290615,224.38,224.06,0.19375788]
[1693480413873,0.07290615,224.37,224.06,0.26626549]
[1693480414073,0.07290615,224.37,224.07,0.19375788]
[1693480416370,0.07290615,224.37,224.07,0.26626549]
[1693480416574,0.07290615,224.37,224.08,0.19375788]
[1693480417868,0.07290615,224.36,224.08,0.19375788]
[1693480418265,0.07290615,224.37,224.08,0.19375788]
[1693480418973,0.07290615,224.36,224.08,0.19375788]
[1693480419868,0.07290615,224.36,224.08,0.26626549]
[1693480420073,0.07290615,224.36,224.09,0.19375788]
[1693480420877,0.07290615,224.35,224.09,0.26626549]
[1693480421173,0.07290615,224.35,224.1,0.19375788]
[1693480421970,0.07290615,224.34,224.1,0.19375788]
[1693480422674,0.07290615,224.35,224.1,0.26626549]
[1693480422875,0.07290615,224.33,224.11,0.26626549]
[1693480423175,0.07290615,224.33,224.12,0.19375788]
[1693480426070,0.07290615,224.34,224.12,0.19375788]
[1693480426576,0.07290615,224.33,224.12,0.19375788]
[1693480428979,0.07290615,224.33,224.12,0.26626549]
[1693480429178,0.07290615,224.33,224.13,0.19375788]
[1693480434985,0.07290615,224.29,224.08,0.07250761]
[1693480435180,0.07290615,224.28,224.07,0.07250761]
[1693480435375,0.07290615,224.28,224.08,0.19412765]
[1693480436181,0.07290615,224.3,224.08,0.19412765]
[1693480436482,0.07290615,224.3,224.05,0.07250761]
[1693480436680,0.07290615,224.3,224.06,0.19412861]
[1693480436982,0.07290615,224.31,224.06,0.19412861]
[1693480437281,0.07290615,224.31,224.07,0.19412861]
[1693480437575,0.07290615,224.31,224.08,0.19412861]
[1693480437880,2.4302053,224.45,224.04,0.07250761]
[1693480437881,0.07290615,224.32,224.04,0.07250761]
[1693480438081,0.07290615,224.32,224.05,0.19413067]
[1693480438678,0.07290615,224.33,224.05,0.26663828]
[1693480438881,0.07290615,224.33,224.06,0.19413067]
[1693480439079,0.07290615,224.33,224.07,0.19413067]
[1693480439278,0.07290615,224.33,224.08,0.19413067]
[1693480439580,0.07290615,224.33,224.09,0.19413067]
[1693480439780,0.07290615,224.33,224.04,0.07250761]
[1693480439983,0.07290615,224.33,224.05,0.19411427]
[1693480440184,0.07290615,224.33,224.06,0.19411427]
[1693480440377,0.07290615,224.33,224.04,0.19411427]
[1693480440581,0.07290615,224.33,224.05,0.19411427]
[1693480440881,0.07290615,224.33,224.06,0.19411427]
[1693480441082,0.07290615,224.33,224.04,0.19411427]
[1693480441282,0.07290615,224.33,224.05,0.19411427]
[1693480441583,0.07290615,224.33,224.06,0.19411427]
[1693480441779,0.07290615,224.33,224.04,0.19411427]
[1693480442087,0.07297366,224.33,224.05,0.19411427]
[1693480442281,0.07297366,224.33,224.04,0.19411427]
[1693480442481,0.07297366,224.34,224.05,0.19411427]
[1693480442682,0.07297366,224.33,224.06,0.19411427]
[1693480442880,0.07297366,224.33,224.03,0.19411427]
[1693480443183,0.07297366,224.33,224.04,0.19411427]
[1693480443384,0.07297366,224.33,224.03,0.19411427]
[1693480443583,0.07297366,224.34,224.04,0.19411427]
[1693480445883,0.07297366,224.35,224.04,0.19411427]
[1693480446083,0.07297366,224.35,224.05,0.19411427]
[1693480446284,0.07297366,224.35,224.03,0.19411427]
[1693480446486,0.07297366,224.35,224.04,0.19411427]
[1693480446685,0.07297366,224.35,224.05,0.19411427]
[1693480446887,0.07297366,224.35,224.03,0.19411427]
[1693480447186,0.07297366,224.35,224.04,0.19411427]
[1693480447387,0.07297366,224.35,224.05,0.19411427]
[1693480447587,0.07297366,224.35,224.06,0.19411427]
[1693480447787,0.07297366,224.35,224.03,0.19411427]
[1693480447988,0.07297366,224.35,224.04,0.19411427]
[1693480448288,0.07297366,224.35,224.05,0.19411427]
[1693480448483,0.07297366,224.35,224.03,0.19411427]
[1693480448687,0.07297366,224.35,224.04,0.19411427]
[1693480448985,0.07297366,224.35,224.05,0.19411427]
[1693480449281,0.07297366,224.35,224.06,0.19411427]
[1693480449488,0.07297366,224.35,224.03,0.19411427]
[1693480449692,0.07297366,224.35,224.04,0.19411427]
[1693480449889,0.07297366,224.35,224.05,0.19411427]
[1693480450087,0.07297366,224.35,224.03,0.19411427]
[1693480450286,0.07297366,224.35,224.04,0.19411427]
[1693480450487,0.07297366,224.35,224.05,0.19411427]
[1693480450792,0.07297366,224.35,224.06,0.19411427]
[1693480451091,0.07297366,224.35,224.07,0.19411427]
[1693480451288,0.07297366,224.35,224.03,0.19411427]
[1693480451484,0.07297366,224.35,224.04,0.19411427]
[1693480451690,0.07297366,224.35,224.03,0.19411427]
[1693480451891,0.07297366,224.35,224.02,0.07244527]
[1693480451892,0.07297366,224.35,224.04,0.19411427]
[1693480452192,0.07297366,224.35,224.05,0.19411427]
[1693480452392,0.07297366,224.35,224.06,0.19411427]
[1693480452589,0.07297366,224.35,224.02,0.07244527]
[1693480452590,0.07297366,224.35,224.07,0.19411427]
[1693480452785,0.07297366,224.35,224.03,0.19411427]
[1693480452991,0.07297366,224.35,224.04,0.19411427]